[Event "CZE-ch Open 2019"]
[Site "Ostrava"]
[Date "2019.05.05"]
[Round "9.17"]
[White "Serrano Salvador, Eduardo"]
[Black "Babula, Milan"]
[Result "1/2-1/2"]
[ECO "A84"]
[WhiteElo "2305"]
[BlackElo "2204"]
[Annotator "NA"]
[PlyCount "164"]
[EventDate "2019.04.27"]
[EventType "swiss"]
[EventCountry "CZE"]
[SourceTitle "playchess.com"]
[Source "ChessBase"]
[SourceQuality "1"]
[TimeControl "40/5400+30:1800+30"]

1. d4 {[%emt 0:00:00]} e6 {[%emt 0:00:00]} 2. c4 {[%emt 0:00:00]} f5 {[%emt 0:00:00]} 3. Nc3 {[%emt 0:00:29]} Nf6 {[%emt 0:00:00]} 4. Nf3 {[%emt 0:00:27]} Be7 {[%emt 0:00:00]} 5. d5 {[%emt 0:03:14]} (5. Bf4 O-O 6. e3 d6 7. h3 Qe8 8. Bd3 Nc6 9. Bh2 Qg6 10. Rg1 Ne4 11. Qb3 Bd7 12. d5 Nc5 13. Qd1 Nxd3+ 14. Qxd3 {0-1 (53) Drygalov,S (2446)-Amin,B (2710) St Petersburg 2018}) 5... d6 {[%emt 0:09:06]} 6. dxe6 {[%emt 0:00:57] A85: Dutch Defence: 2 c4 Nf6 3 Nc3} Bxe6 {[%emt 0:00:03]} 7. Nd4 {[%emt 0:00:46]} Bd7 {[%emt 0:01:20]} 8. g3 {[%emt 0:08:00]} Na6 $146 {[%emt 0:05:50]} ({Predecessor:} 8... c5 9. Nf3 Ne4 10. Nd5 Bc6 11. Bg2 Nd7 12. O-O Nb6 13. Nxe7 Qxe7 {½-½ (21) Kleibaumhueter,K (2184)-Stinis,S (2053) Arco 2002}) 9. Bg2 {[%emt 0:02:38]} c6 {[%emt 0:01:18]} 10. O-O {[%emt 0:05:38]} O-O {[%emt 0:01:38]} 11. Qc2 {[%emt 0:01:49]} Qc8 {[%emt 0:05:38]} 12. Rd1 {[%emt 0:01:24]} Nc5 {[%emt 0:06:50]} 13. Nb3 {[%emt 0:10:11]} Nxb3 {[%emt 0:10:30]} 14. axb3 {[%emt 0:00:35]} Nh5 {[%emt 0:00:10]} 15. f4 {[%emt 0:05:50]} Nf6 {[%emt 0:02:12]} 16. Be3 {[%emt 0:02:05]} Ng4 {[%emt 0:09:19]} 17. Bd4 {[%emt 0:01:25]} ({But not} 17. Bxa7 Rxa7 18. Rxa7 d5 $11) 17... a6 {[%emt 0:12:01]} 18. h3 {[%emt 0:01:25]} Nf6 {[%emt 0:00:51]} 19. Na4 {[%emt 0:00:46]} Qe8 {[%emt 0:00:06]} 20. Nb6 {[%emt 0:00:58]} Rd8 {[%emt 0:00:18]} 21. Nxd7 {[%emt 0:00:26]} Qxd7 {[%emt 0:03:42]} 22. Kh2 {[%emt 0:04:35]} Qe6 {[%emt 0:01:27]} 23. Rd3 {[%emt 0:02:19]} Rf7 {[%emt 0:01:32]} 24. Re3 {[%emt 0:01:09]} Qd7 {[%emt 0:00:21]} 25. Ra5 {[%emt 0:02:04]} g6 {[%emt 0:02:55]} 26. Ra1 {[%emt 0:00:42]} Re8 {[%emt 0:01:02]} 27. Rd1 {[%emt 0:02:18]} Bf8 {[%emt 0:02:31]} 28. Red3 {[%emt 0:04:02]} Re6 {[%emt 0:01:56]} 29. Bxf6 {[%emt 0:04:04]} Rfxf6 {[%emt 0:00:27]} 30. b4 {[%emt 0:00:26]} Qe8 {[%emt 0:02:05]} 31. Bf3 {[%emt 0:00:31]} Re3 {[%emt 0:06:38]} 32. b5 {[%emt 0:02:01]} Rxd3 {[%emt 0:02:28]} 33. Rxd3 {[%emt 0:01:01]} axb5 {[%emt 0:00:47]} 34. cxb5 {[%emt 0:00:06]} d5 {[%emt 0:00:19]} 35. bxc6 {[%emt 0:00:21]} bxc6 {[%emt 0:00:01]} 36. Rc3 {[%emt 0:00:19]} Kh8 {[%emt 0:00:29]} 37. Rb3 {[%emt 0:01:01]} h5 {[%emt 0:06:07]} 38. Kg2 {[%emt 0:01:44]} Kh7 {[%emt 0:01:42]} 39. Rb7+ {[%emt 0:01:06]} Bg7 {[%emt 0:00:40]} 40. Qa4 {[%emt 0:03:51]} Rf7 {[%emt 0:03:40]} 41. Rxf7 {[%emt 0:31:11]} Qxf7 {[%emt 0:30:01]} 42. Qxc6 {[%emt 0:00:10]} Bxb2 {[%emt 0:00:04]} 43. Bxd5 {[%emt 0:00:06]} Qe7 {[%emt 0:00:03]} 44. e4 {[%emt 0:00:27]} fxe4 {[%emt 0:00:00]} 45. Bxe4 {[%emt 0:00:00]} Bf6 {[%emt 0:00:00]} 46. g4 {[%emt 0:00:00]} hxg4 {[%emt 0:00:00]} 47. hxg4 {[%emt 0:00:00]} Qf7 $1 $11 {[%emt 0:00:00] keeps the balance.} 48. Bd5 {[%emt 0:00:00]} Qe7 {[%emt 0:00:00]} 49. Be6 {[%emt 0:00:00]} Qd8 {[%emt 0:00:00]} 50. Qb7+ {[%emt 0:00:00]} Qe7 {[%emt 0:00:00]} 51. Qc6 {[%emt 0:00:00]} Qd8 {[%emt 0:00:00]} 52. Bd5 {[%emt 0:00:00]} Qe7 {[%emt 0:00:00]} 53. Be4 {[%emt 0:00:00]} Qd8 {[%emt 0:00:00]} 54. Qc2 {[%emt 0:00:00]} Qe8 {[%emt 0:00:00]} 55. g5 {[%emt 0:00:00]} Bxg5 {[%emt 0:00:00]} 56. fxg5 {[%emt 0:00:00]} Qe7 {[%emt 0:00:00]} 57. Bxg6+ {[%emt 0:00:00]} Kg7 {[%emt 0:00:00]} 58. Qf5 {[%emt 0:00:00]} (58. Bf5 $16 Qxg5+ 59. Kf3) 58... Qe2+ $1 {[%emt 0:00:00]} 59. Kg3 $11 {[%emt 0:00:00]} Qe3+ {[%emt 0:02:53]} 60. Kg4 {[%emt 0:00:00]} Qg1+ {[%emt 0:00:32]} 61. Kf3 {[%emt 0:00:00]} Qf1+ {[%emt 0:02:18]} 62. Ke3 {[%emt 0:00:00]} Qe1+ {[%emt 0:01:09]} 63. Kd4 {[%emt 0:00:00]} Qb4+ {[%emt 0:00:23]} 64. Ke5 {[%emt 0:00:00]} Qc5+ {[%emt 0:00:12]} 65. Kf4 {[%emt 0:00:00]} Qf2+ {[%emt 0:00:25]} 66. Ke4 {[%emt 0:00:00]} Qe1+ {[%emt 0:01:37]} 67. Kd3 {[%emt 0:00:00]} Qd1+ {[%emt 0:01:04]} 68. Kc3 {[%emt 0:00:00]} Qc1+ {[%emt 0:00:38]} 69. Kb3 {[%emt 0:00:00]} Qd1+ {[%emt 0:00:22]} 70. Kc4 {[%emt 0:00:00]} Qa4+ {[%emt 0:00:25]} 71. Kc3 {[%emt 0:00:00]} Qa1+ {[%emt 0:01:28]} 72. Kb3 {[%emt 0:00:00]} Qd1+ {[%emt 0:00:09]} 73. Kb4 {[%emt 0:00:00]} Qd6+ {[%emt 0:00:57]} 74. Kb5 {[%emt 0:00:00]} Qxg6 {[%emt 0:00:04]} 75. Qe5+ {[%emt 0:00:00]} Kf7 {[%emt 0:00:08]} 76. Qd5+ {[%emt 0:00:00]} Kg7 {[%emt 0:00:10]} 77. Kc5 {[%emt 0:00:00]} Qc2+ {[%emt 0:01:13]} 78. Kd6 {[%emt 0:00:00]} Qh2+ {[%emt 0:00:16]} 79. Kd7 {[%emt 0:00:00]} Qh3+ {[%emt 0:00:14]} 80. Ke7 {[%emt 0:00:00]} Qe3+ {[%emt 0:00:08]} 81. Kd8 {[%emt 0:00:00]} Kg6 {[%emt 0:00:25]} 82. Qg8+ {[%emt 0:00:00]} Kh5 {[%emt 0:00:14]} 1/2-1/2

[Event "CZE-ch Open 2019"]
[Site "Ostrava"]
[Date "2019.05.05"]
[Round "9.18"]
[White "Jedlicka, Ales"]
[Black "Sramek, Vojtech"]
[Result "1-0"]
[ECO "A52"]
[WhiteElo "2236"]
[BlackElo "2304"]
[Annotator "NA"]
[PlyCount "111"]
[EventDate "2019.04.27"]
[EventType "swiss"]
[EventCountry "CZE"]
[SourceTitle "playchess.com"]
[Source "ChessBase"]
[SourceQuality "1"]
[TimeControl "40/5400+30:1800+30"]

1. d4 {[%emt 0:00:00]} Nf6 {[%emt 0:00:00]} 2. c4 {[%emt 0:00:10]} e5 {[%emt 0:00:00]} 3. dxe5 {[%emt 0:00:27]} Ng4 {[%emt 0:00:00]} 4. Bf4 {[%emt 0:00:20]} g5 {[%emt 0:00:00]} 5. Bg3 {[%emt 0:00:43]} Nc6 {[%emt 0:00:21]} 6. Nf3 {[%emt 0:00:38]} Bg7 {[%emt 0:00:05]} 7. Nc3 {[%emt 0:00:56]} Ngxe5 {[%emt 0:00:14]} 8. Nxe5 {[%emt 0:00:15]} Nxe5 {[%emt 0:00:25]} 9. e3 {[%emt 0:00:42]} d6 {[%emt 0:05:27]} 10. h4 {[%emt 0:02:19] A52: Budapest Gambit} g4 {[%emt 0:00:58]} 11. Rc1 {[%emt 0:02:29]} (11. Be2 Be6 12. Rc1 O-O 13. b3 c6 14. h5 f5 15. h6 {0-1 (27) Wojtaszek,R (2711)-Jobava,B (2710) Wijk aan Zee 2014}) 11... Be6 {[%emt 0:05:40]} 12. h5 {[%emt 0:01:34]} h6 {[%emt 0:01:44]} 13. Be2 {[%emt 0:06:23]} Qd7 {[%emt 0:05:52]} 14. Rh4 $146 {[%emt 0:10:51]} ({Predecessor:} 14. b3 O-O-O 15. Nd5 f5 16. Nf4 Bf7 17. Qd2 Kb8 {0-1 (33) Barseghyan,H (2467)-Zwardon,V (2412) chess.com INT 2018}) 14... f5 {[%emt 0:11:51]} 15. Nd5 {[%emt 0:03:15]} O-O-O {[%emt 0:03:37]} 16. Rh2 {[%emt 0:09:32]} Rhf8 {[%emt 0:10:29]} 17. Qb3 {[%emt 0:05:50]} Kb8 {[%emt 0:05:31]} 18. f3 {[%emt 0:06:33]} (18. Nf4 $15) 18... Rde8 {[%emt 0:06:07]} 19. Rd1 {[%emt 0:03:20]} gxf3 {[%emt 0:08:46]} 20. gxf3 {[%emt 0:00:26]} Bxd5 {[%emt 0:01:14]} 21. cxd5 {[%emt 0:01:58]} Nxf3+ {[%emt 0:01:04]} 22. Bxf3 {[%emt 0:00:45]} f4 {[%emt 0:00:10]} 23. Bxf4 {[%emt 0:06:02]} Rxf4 {[%emt 0:00:18]} 24. Be2 {[%emt 0:04:49]} Rfe4 {[%emt 0:02:10]} 25. Rd3 {[%emt 0:01:09]} Be5 {[%emt 0:02:17]} 26. Rg2 {[%emt 0:00:46]} Qh3 {[%emt 0:06:07]} 27. Rg1 {[%emt 0:12:27]} Qh4+ {[%emt 0:02:13]} 28. Kd1 {[%emt 0:00:21]} Rb4 {[%emt 0:00:24]} 29. Qa3 {[%emt 0:00:53]} Rxb2 {[%emt 0:00:36]} 30. Rb3 {[%emt 0:03:31]} Rxe2 {[%emt 0:02:46] [#]} 31. Qa6 $1 {[%emt 0:00:41] [#]} Rd2+ $1 {[%emt 0:04:01] Decoy} 32. Kxd2 {[%emt 0:01:02]} Qf2+ {[%emt 0:03:09]} 33. Kd3 {[%emt 0:01:15]} Qf5+ {[%emt 0:00:24]} 34. Kd2 {[%emt 0:02:37]} Qf2+ {[%emt 0:02:14]} 35. Kd3 {[%emt 0:00:13]} Qf5+ {[%emt 0:02:12]} 36. Kd2 {[%emt 0:00:40]} Bc3+ {[%emt 0:01:17]} 37. Kc1 {[%emt 0:01:37]} Qxd5 {[%emt 0:02:30]} 38. Qb5 {[%emt 0:03:02]} Bd2+ {[%emt 0:02:42] [#]} 39. Kc2 $1 {[%emt 0:02:06]} Qxb5 {[%emt 0:02:09]} 40. Rxb5 {[%emt 0:00:11]} c6 {[%emt 0:02:11]} 41. Rb3 {[%emt 0:31:00]} Ba5 {[%emt 0:04:22]} 42. Rg6 {[%emt 0:00:00] Double Attack} Bd8 $2 {[%emt 0:07:04]} (42... c5 $16 43. Rxh6 (43. Rxd6 c4 $16) 43... c4) 43. Rxh6 {[%emt 0:00:00]} Bg5 {[%emt 0:00:15]} 44. Rxd6 {[%emt 0:00:00]} Rh8 $18 {[%emt 0:01:43]} 45. Rg6 {[%emt 0:00:00]} Rxh5 {[%emt 0:00:55]} 46. Kd3 {[%emt 0:00:00]} Bh6 {[%emt 0:06:39]} 47. Rg8+ {[%emt 0:00:00]} Kc7 {[%emt 0:00:04]} 48. Rh8 {[%emt 0:00:00]} Rh3 {[%emt 0:02:27]} 49. Ke4 {[%emt 0:00:00]} Kd6 {[%emt 0:01:54]} 50. Kf5 {[%emt 0:00:00]} Rf3+ {[%emt 0:00:33]} 51. Kg4 {[%emt 0:00:41]} Rf6 {[%emt 0:00:20]} 52. Kh5 {[%emt 0:01:00]} Bf8 {[%emt 0:01:16]} 53. Rxb7 {[%emt 0:01:06]} Rf2 {[%emt 0:01:38]} 54. Kg4 {[%emt 0:00:26]} Bg7 {[%emt 0:01:09]} 55. Rd8+ {[%emt 0:00:53]} Ke6 {[%emt 0:00:17]} 56. Kg3 {[%emt 0:00:27] Kd5} 1-0

[Event "CZE-ch Open 2019"]
[Site "Ostrava"]
[Date "2019.05.05"]
[Round "9.19"]
[White "Malik, Jan"]
[Black "Taus, Martin"]
[Result "1/2-1/2"]
[ECO "C04"]
[WhiteElo "2286"]
[BlackElo "2104"]
[Annotator "NA RC"]
[PlyCount "72"]
[EventDate "2019.04.27"]
[EventType "swiss"]
[EventCountry "CZE"]
[SourceTitle "playchess.com"]
[Source "ChessBase"]
[SourceQuality "1"]
[TimeControl "40/5400+30:1800+30"]

1. e4 {[%emt 0:00:00]} e6 {[%emt 0:00:32]} 2. d4 {[%emt 0:00:00]} d5 {[%emt 0:00:03]} 3. Nd2 {[%emt 0:00:00]} Nc6 {[%emt 0:02:03]} 4. Ngf3 {[%emt 0:00:00]} Nf6 {[%emt 0:01:32]} 5. e5 {[%emt 0:00:00]} Ne4 {[%emt 0:03:47]} 6. Bd3 {[%emt 0:01:41] C04: French Tarrasch: 3...Nc6} f5 {[%emt 0:00:10] [#]} 7. exf6 $1 {[%emt 0:00:15]} Nxf6 {[%emt 0:00:08]} 8. O-O {[%emt 0:01:49]} Bd6 {[%emt 0:19:44]} 9. c4 {[%emt 0:00:06]} (9. Re1 O-O 10. c3 Nh5 11. Nf1 Nf4 12. Bxf4 Rxf4 13. Ne3 Bd7 14. g3 {1-0 (66) Balogh,C (2621)-Balog,I (2548) Slovakia 2017}) 9... O-O {[%emt 0:01:25]} 10. c5 {[%emt 0:00:23]} Bf4 {[%emt 0:18:41]} 11. g3 $146 {[%emt 0:03:41]} ({Predecessor:} 11. Nb3 $14 Bxc1 (11... e5 12. dxe5 Bxe5 13. h3 Ne4 14. Nxe5 Nxe5 15. Bxe4 dxe4 16. Qxd8 Rxd8 {½-½ (49) Cucancic,S (2257)-Tomic,B (2092) Rijeka 2008}) 12. Rxc1 (12. Qxc1 Nh5 $14)) 11... e5 {[%emt 0:06:38]} 12. Nxe5 {[%emt 0:01:20]} Bxe5 {[%emt 0:04:10]} 13. dxe5 {[%emt 0:00:02]} Nxe5 {[%emt 0:00:29]} 14. Be2 {[%emt 0:01:50]} Bh3 {[%emt 0:08:05]} 15. Re1 {[%emt 0:00:01]} Nfg4 {[%emt 0:00:38]} 16. f4 {[%emt 0:01:03]} Ne3 {[%emt 0:13:49]} (16... Qe7 $1 $11 {keeps the balance.} 17. b4 Rae8) 17. Qb3 {[%emt 0:00:16]} N5g4 {[%emt 0:04:58]} (17... N5c4 $16) 18. Nf3 {[%emt 0:01:34]} Qe7 {[%emt 0:05:27] [#]} (18... Ng2 $16 19. Rd1 c6) 19. Ng5 $2 {[%emt 0:04:41]} ({White has to play} 19. Bb5 $1 $18) 19... Qxc5 {[%emt 0:01:14]} 20. Bxe3 {[%emt 0:06:28]} Nxe3 {[%emt 0:00:06]} 21. Nxh3 {[%emt 0:00:36]} Nc2+ {[%emt 0:00:28]} 22. Nf2 {[%emt 0:00:58]} Nxe1 {[%emt 0:00:39]} 23. Rxe1 {[%emt 0:00:02]} Rae8 {[%emt 0:00:11]} 24. Kg2 {[%emt 0:03:37]} Re3 {[%emt 0:00:33]} 25. Nd3 {[%emt 0:00:52]} Qd4 {[%emt 0:00:23]} 26. Qxb7 {[%emt 0:14:17]} Rfe8 {[%emt 0:00:40]} 27. Ne5 {[%emt 0:02:17]} Qd2 {[%emt 0:02:25]} 28. Qb5 {[%emt 0:04:54]} c6 {[%emt 0:00:06]} 29. Qxc6 {[%emt 0:00:34]} Rxe2+ {[%emt 0:00:14]} 30. Rxe2 $11 {[%emt 0:00:11]} Qxe2+ {[%emt 0:00:04]} 31. Kh3 {[%emt 0:00:27]} Qh5+ {[%emt 0:01:25]} 32. Kg2 {[%emt 0:00:01]} Qe2+ {[%emt 0:01:52]} 33. Kh3 {[%emt 0:00:26]} Qh5+ {[%emt 0:00:07]} 34. Kg2 {[%emt 0:00:05]} Qe2+ {[%emt 0:02:15]} 35. Kh3 {[%emt 0:00:06]} Qh5+ {[%emt 0:00:05]} 36. Kg2 {[%emt 0:00:04]} Qe2+ 1/2-1/2

[Event "CZE-ch Open 2019"]
[Site "Ostrava"]
[Date "2019.05.05"]
[Round "9.20"]
[White "Kanakova, Natalie"]
[Black "Vokac, Marek"]
[Result "1/2-1/2"]
[ECO "A04"]
[WhiteElo "2202"]
[BlackElo "2343"]
[Annotator "NA RC"]
[PlyCount "60"]
[EventDate "2019.04.27"]
[EventType "swiss"]
[EventCountry "CZE"]
[SourceTitle "playchess.com"]
[Source "ChessBase"]
[SourceQuality "1"]
[TimeControl "40/5400+30:1800+30"]

1. Nf3 {[%emt 0:00:00]} g6 {[%emt 0:02:15]} 2. e4 {[%emt 0:00:10]} Bg7 {[%emt 0:00:04]} 3. d4 {[%emt 0:00:06]} c6 {[%emt 0:00:04]} 4. h3 {[%emt 0:00:42]} d6 {[%emt 0:00:12]} 5. Bc4 {[%emt 0:01:03]} (5. c4 Nf6 6. Nc3 O-O 7. Be3 a6 8. a4 a5 9. Be2 Na6 10. O-O Nd7 11. Qd2 Re8 12. Rad1 e5 13. d5 Bf8 14. Ne1 Nac5 15. Qc2 Qb6 16. Nd3 Qb3 17. Qd2 Nxd3 18. Bxd3 Nc5 {1-0 (62) Nihal,S (2576)-Novikov,S (2540) St Petersburg 2018}) 5... d5 {[%emt 0:00:11]} 6. Bb3 {[%emt 0:00:44] B06: Modern Defence} dxe4 {[%emt 0:05:19]} 7. Ng5 {[%emt 0:00:39]} Nh6 {[%emt 0:00:04]} 8. c3 $146 {[%emt 0:00:43]} ({Predecessor:} 8. Nxe4 Nf5 9. c3 O-O 10. O-O Na6 11. Bf4 Nc7 12. Nbd2 Nd5 {1-0 (42) Verges,J (1940)-Jelen,P (2150) Oravska Priehrada 2015}) 8... O-O {[%emt 0:00:24]} 9. O-O {[%emt 0:02:54]} Nd7 {[%emt 0:01:54]} 10. Nxe4 {[%emt 0:06:16]} Nf5 {[%emt 0:07:17]} 11. Nbd2 {[%emt 0:02:35]} e5 {[%emt 0:01:54]} 12. dxe5 {[%emt 0:04:29]} Nxe5 {[%emt 0:00:07]} 13. Nc4 {[%emt 0:01:17]} Qxd1 {[%emt 0:16:22]} 14. Rxd1 {[%emt 0:00:13]} Nxc4 {[%emt 0:00:11]} 15. Bxc4 {[%emt 0:00:04]} h6 {[%emt 0:00:09]} 16. Bf4 {[%emt 0:17:44]} Re8 {[%emt 0:13:56]} 17. Re1 {[%emt 0:02:42]} Be6 {[%emt 0:00:50]} 18. Nd6 {[%emt 0:11:55]} Nxd6 {[%emt 0:01:21]} 19. Bxe6 {[%emt 0:00:04]} Rxe6 {[%emt 0:00:10]} 20. Rxe6 {[%emt 0:00:07]} fxe6 {[%emt 0:00:09]} 21. Bxd6 {[%emt 0:00:06]} Rd8 {[%emt 0:00:08]} 22. Bf4 {[%emt 0:00:27]} Kf7 {[%emt 0:02:12]} 23. Kf1 {[%emt 0:00:53]} Rd5 {[%emt 0:00:15]} 24. a4 {[%emt 0:03:06]} Ra5 {[%emt 0:04:21]} 25. Bd2 {[%emt 0:10:22]} b5 {[%emt 0:10:12]} 26. b3 {[%emt 0:00:45]} Ra6 {[%emt 0:01:15]} 27. Ke2 {[%emt 0:02:21]} c5 {[%emt 0:00:36]} 28. Kd3 {[%emt 0:03:42]} c4+ {[%emt 0:10:14]} 29. Kc2 $11 {[%emt 0:01:54]} Ke8 {[%emt 0:04:18]} 30. Kb2 {[%emt 0:08:09]} Rd6 {[%emt 0:07:42]} 1/2-1/2

[Event "CZE-ch Open 2019"]
[Site "Ostrava"]
[Date "2019.05.05"]
[Round "9.21"]
[White "Vesselovsky, Serguei"]
[Black "Koubova, Anna Marie"]
[Result "1/2-1/2"]
[ECO "A05"]
[WhiteElo "2335"]
[BlackElo "2005"]
[Annotator "NA"]
[PlyCount "152"]
[EventDate "2019.04.27"]
[EventType "swiss"]
[EventCountry "CZE"]
[SourceTitle "playchess.com"]
[Source "ChessBase"]
[SourceQuality "1"]
[TimeControl "40/5400+30:1800+30"]

1. Nf3 {[%emt 0:00:00]} Nf6 {[%emt 0:00:00]} 2. c4 {[%emt 0:00:06]} g6 {[%emt 0:00:48]} 3. Nc3 {[%emt 0:00:22]} Bg7 {[%emt 0:01:14]} 4. e4 {[%emt 0:07:17]} d6 {[%emt 0:00:26]} 5. d4 {[%emt 0:00:47]} O-O {[%emt 0:00:36]} 6. h3 {[%emt 0:01:10]} e5 {[%emt 0:13:01]} 7. d5 {[%emt 0:00:17]} Nbd7 {[%emt 0:02:04]} 8. Bg5 {[%emt 0:02:56]} a5 {[%emt 0:01:59]} 9. g4 {[%emt 0:05:31]} Nc5 {[%emt 0:03:45]} 10. Nd2 {[%emt 0:01:27]} c6 {[%emt 0:02:38]} 11. Be2 {[%emt 0:06:28]} Bd7 {[%emt 0:03:31] E92: King's Indian: Classical: 6 Be2 e5: 7 dxe5, 7 Be3 and Petrosian System without 7...Nbd7} 12. h4 {[%emt 0:15:54]} cxd5 {[%emt 0:12:35]} (12... a4 13. a3 Qa5 14. Kf1 cxd5 15. cxd5 b5 16. Be3 Rab8 17. h5 b4 18. axb4 Rxb4 19. Bxc5 Qxc5 {0-1 (27) Grischuk,A (2792)-Morozevich,A (2731) Dubai 2014}) 13. Nxd5 {[%emt 0:01:42]} (13. exd5 $11 Qb6 14. Nb3) 13... Bc6 {[%emt 0:00:26]} 14. h5 {[%emt 0:14:20]} Bxd5 {[%emt 0:03:17]} 15. exd5 $146 {[%emt 0:01:35]} ({Predecessor:} 15. cxd5 Qb6 16. Nc4 Qc7 17. f3 a4 18. Kf1 b5 {½-½ (37) Bartkowiak,D (2152)-Myzyk,J (2075) Poronin 2013}) 15... Qb6 {[%emt 0:01:50]} 16. Qc2 {[%emt 0:02:05]} Nfd7 {[%emt 0:12:22]} 17. Be3 {[%emt 0:06:55]} Rfe8 {[%emt 0:08:16]} 18. Rb1 {[%emt 0:07:30]} Qc7 {[%emt 0:04:27]} 19. b3 {[%emt 0:02:05]} Rf8 {[%emt 0:01:33]} 20. a3 {[%emt 0:02:08]} Nb6 {[%emt 0:05:05]} 21. Kf1 {[%emt 0:03:47]} Ncd7 {[%emt 0:02:26]} 22. Rc1 {[%emt 0:06:33]} Rac8 {[%emt 0:00:21]} 23. Bd3 {[%emt 0:02:53]} Nf6 {[%emt 0:02:49]} 24. f3 {[%emt 0:01:26]} e4 {[%emt 0:04:10]} 25. Nxe4 {[%emt 0:01:14]} Nxe4 {[%emt 0:00:05]} 26. Bxe4 {[%emt 0:00:32]} Rfe8 $2 {[%emt 0:00:26]} (26... Nd7 $16 27. Qh2 (27. hxg6 fxg6 28. Kg2 Nf6 $16) 27... Nf6) 27. Bf2 $2 {[%emt 0:00:51]} (27. Qh2 $18) 27... Nd7 {[%emt 0:00:59]} (27... a4 $14) 28. Kg2 {[%emt 0:01:01]} Nf6 {[%emt 0:00:46]} 29. hxg6 {[%emt 0:01:16]} fxg6 {[%emt 0:01:06]} 30. Rhe1 {[%emt 0:00:40]} Nxe4 {[%emt 0:07:36]} (30... a4 $16) 31. Rxe4 {[%emt 0:00:07]} ({Weaker is} 31. fxe4 Rf8 $14) 31... Qf7 {[%emt 0:00:17]} 32. Rce1 {[%emt 0:01:45]} Be5 {[%emt 0:01:12]} 33. Qe2 {[%emt 0:01:38]} Rf8 {[%emt 0:00:43]} 34. Bg3 {[%emt 0:00:32]} Bxg3 {[%emt 0:02:55]} 35. Kxg3 {[%emt 0:00:03]} b5 {[%emt 0:00:32]} 36. Kg2 {[%emt 0:01:49]} ({White should play} 36. cxb5 $18 Qxd5 37. Re3) 36... a4 {[%emt 0:00:58]} 37. Re7 {[%emt 0:00:40]} ({Much weaker is} 37. cxb5 $6 axb3 38. Qd3 (38. Re7 Qf4 $11) 38... Qf6 $14) 37... Qf6 {[%emt 0:00:32]} 38. bxa4 {[%emt 0:01:00]} ({But not} 38. cxb5 axb3 39. Qe6+ Qxe6 $14) 38... bxc4 {[%emt 0:00:20]} 39. Qe6+ {[%emt 0:00:34]} Qxe6 {[%emt 0:00:11]} 40. R7xe6 {[%emt 0:00:30]} Rfd8 {[%emt 0:00:45]} 41. Rc1 {[%emt 0:04:57]} Rc5 {[%emt 0:03:25]} 42. Rc3 {[%emt 0:02:24]} Rxd5 {[%emt 0:03:41]} 43. Rxc4 {[%emt 0:00:19]} Rd3 $16 {[%emt 0:00:23]} (43... Rd7 $14) 44. Re7 {[%emt 0:12:00]} h5 {[%emt 0:07:27]} 45. gxh5 {[%emt 0:04:39]} gxh5 {[%emt 0:00:06]} 46. Rcc7 {[%emt 0:00:21]} Rxa3 {[%emt 0:01:24]} 47. Rg7+ {[%emt 0:00:27]} Kf8 {[%emt 0:00:36]} 48. Rgf7+ {[%emt 0:01:15]} Kg8 {[%emt 0:00:11]} 49. Rg7+ {[%emt 0:00:06]} Kf8 {[%emt 0:00:07]} 50. Rcf7+ {[%emt 0:00:03]} Ke8 {[%emt 0:00:16]} 51. Ra7 {[%emt 0:00:07]} Kf8 {[%emt 0:00:27]} 52. Rh7 {[%emt 0:03:49]} Kg8 {[%emt 0:00:09]} 53. Rxh5 {[%emt 0:00:18]} Rf8 {[%emt 0:02:18]} 54. Rg5+ {[%emt 0:01:52]} Kh8 {[%emt 0:00:12]} 55. Rh5+ {[%emt 0:00:08]} Kg8 {[%emt 0:00:06]} 56. Rg5+ {[%emt 0:00:03]} Kh8 {[%emt 0:00:08]} 57. Rg3 {[%emt 0:00:19]} Rf4 {[%emt 0:14:40]} 58. Ra5 {[%emt 0:01:13]} Rh4 {[%emt 0:00:09]} 59. Rg4 {[%emt 0:01:49]} Rxg4+ {[%emt 0:00:23]} 60. fxg4 {[%emt 0:00:01]} Kg7 {[%emt 0:00:46]} 61. Kf2 {[%emt 0:00:43]} Kf6 {[%emt 0:02:08]} 62. Ke2 {[%emt 0:00:58]} d5 {[%emt 0:00:53]} 63. Ra8 {[%emt 0:00:56]} Rg3 {[%emt 0:01:52]} 64. Rg8 {[%emt 0:00:34]} Ra3 {[%emt 0:00:33]} 65. g5+ {[%emt 0:00:23]} Kf5 {[%emt 0:00:36]} 66. Ra8 {[%emt 0:00:58]} Kxg5 {[%emt 0:00:05]} 67. a5 {[%emt 0:00:03]} Kf6 {[%emt 0:00:17]} 68. a6 {[%emt 0:00:05]} d4 {[%emt 0:00:54]} 69. Kd2 {[%emt 0:00:33]} Kg7 {[%emt 0:00:18]} 70. Kc2 {[%emt 0:00:11]} d3+ {[%emt 0:00:30]} 71. Kd2 {[%emt 0:00:14]} Kh7 {[%emt 0:00:20]} 72. Ke3 {[%emt 0:00:50]} Kg7 {[%emt 0:00:22]} 73. Ra7+ {[%emt 0:00:06]} Kg6 {[%emt 0:01:01]} 74. Ra8 {[%emt 0:00:34]} Kg7 {[%emt 0:00:25]} 75. a7 {[%emt 0:00:19]} Kh7 {[%emt 0:00:07]} 76. Kd2 {[%emt 0:00:05]} Kg7 {[%emt 0:00:30]} 1/2-1/2